[Event "FIDE U16 Olympiad_boards_1-80"]
[Site "Eindhoven, Netherlands"]
[Date "2023.08.14"]
[Round "2.63"]
[White "Rakovsky, Jakub"]
[Black "Kirtadze, Anastasia"]
[Result "1-0"]
[TimeControl "2700+10"]
[WhiteElo "1860"]
[BlackElo "1884"]

1. e4 {[%clk 00:45:13]} {[%emt 00:00:06]} c5 {[%clk 00:45:19]} {[%emt
00:00:01]} 2. Nf3 {[%clk 00:45:05]} {[%emt 00:00:18]} e6 {[%clk 00:45:27]}
{[%emt 00:00:03]} 3. c3 {[%clk 00:44:30]} {[%emt 00:00:45]} d5 {[%clk
00:44:28]} {[%emt 00:01:09]} 4. exd5 {[%clk 00:44:15]} {[%emt 00:00:24]} Qxd5
{[%clk 00:44:25]} {[%emt 00:00:13]} 5. Na3 {[%clk 00:43:43]} {[%emt 00:00:41]}
Nc6 {[%clk 00:42:41]} {[%emt 00:01:56]} 6. Be2 {[%clk 00:38:50]} {[%emt
00:05:03]} Nf6 {[%clk 00:40:46]} {[%emt 00:02:05]} 7. d4 {[%clk 00:38:03]}
{[%emt 00:00:56]} cxd4 {[%clk 00:40:13]} {[%emt 00:00:43]} 8. Nb5 {[%clk
00:37:47]} {[%emt 00:00:26]} Qd8 {[%clk 00:38:57]} {[%emt 00:01:27]} 9. Nbxd4
{[%clk 00:37:37]} {[%emt 00:00:20]} Nxd4 {[%clk 00:37:44]} {[%emt 00:01:23]} 10.
Qxd4 {[%clk 00:37:15]} {[%emt 00:00:32]} Be7 {[%clk 00:35:07]} {[%emt
00:02:47]} 11. Qxd8+ {[%clk 00:34:40]} {[%emt 00:02:45]} Bxd8 {[%clk 00:35:05]}
{[%emt 00:00:11]} 12. O-O {[%clk 00:34:26]} {[%emt 00:00:24]} Bc7 {[%clk
00:34:38]} {[%emt 00:00:38]} 13. Bg5 {[%clk 00:30:45]} {[%emt 00:03:50]} Bd7
{[%clk 00:32:43]} {[%emt 00:02:06]} 14. Bh4 {[%clk 00:29:28]} {[%emt 00:01:27]}
Ke7 {[%clk 00:31:57]} {[%emt 00:00:57]} 15. Bg3 {[%clk 00:28:14]} {[%emt
00:01:23]} Bxg3 {[%clk 00:31:14]} {[%emt 00:00:53]} 16. hxg3 {[%clk 00:28:09]}
{[%emt 00:00:14]} Bc6 {[%clk 00:30:39]} {[%emt 00:00:46]} 17. Nd4 {[%clk
00:23:58]} {[%emt 00:04:20]} Rhd8 {[%clk 00:30:10]} {[%emt 00:00:40]} 18. Rfd1
{[%clk 00:21:55]} {[%emt 00:02:13]} Rd6 {[%clk 00:29:13]} {[%emt 00:01:07]} 19.
Bf3 {[%clk 00:18:40]} {[%emt 00:03:25]} Rad8 {[%clk 00:27:44]} {[%emt
00:01:40]} 20. Re1 {[%clk 00:17:20]} {[%emt 00:01:29]} g6 {[%clk 00:27:31]}
{[%emt 00:00:22]} 21. Bxc6 {[%clk 00:16:30]} {[%emt 00:01:01]} bxc6 {[%clk
00:27:40]} {[%emt 00:00:01]} 22. Nb3 {[%clk 00:15:27]} {[%emt 00:01:13]} Nd5
{[%clk 00:26:37]} {[%emt 00:01:13]} 23. Kf1 {[%clk 00:14:17]} {[%emt 00:01:20]}
Nb6 {[%clk 00:26:10]} {[%emt 00:00:37]} 24. Na5 {[%clk 00:12:16]} {[%emt
00:02:11]} R8d7 {[%clk 00:25:23]} {[%emt 00:00:58]} 25. b4 {[%clk 00:11:06]}
{[%emt 00:01:19]} Rc7 {[%clk 00:24:57]} {[%emt 00:00:36]} 26. Red1 {[%clk
00:09:24]} {[%emt 00:01:51]} Nd5 {[%clk 00:23:08]} {[%emt 00:01:59]} 27. Rd3
{[%clk 00:07:23]} {[%emt 00:02:11]} c5 {[%clk 00:21:21]} {[%emt 00:01:57]} 28.
Nc4 {[%clk 00:05:29]} {[%emt 00:02:04]} Ra6 {[%clk 00:20:44]} {[%emt 00:00:47]}
29. b5 {[%clk 00:05:28]} {[%emt 00:00:12]} Ra4 {[%clk 00:20:39]} {[%emt
00:00:14]} 30. Nb2 {[%clk 00:05:32]} {[%emt 00:00:07]} Ra3 {[%clk 00:20:38]}
{[%emt 00:00:11]} 31. c4 {[%clk 00:05:06]} {[%emt 00:00:35]} Rxd3 {[%clk
00:19:38]} {[%emt 00:01:11]} 32. Nxd3 {[%clk 00:05:16]} Nb4 {[%clk 00:19:44]}
{[%emt 00:00:03]} 33. Ke2 {[%clk 00:03:30]} {[%emt 00:01:55]} Nc2 {[%clk
00:17:00]} {[%emt 00:02:54]} 34. Rd1 {[%clk 00:03:24]} {[%emt 00:00:17]} f6
{[%clk 00:15:50]} {[%emt 00:01:21]} 35. g4 {[%clk 00:03:18]} {[%emt 00:00:15]}
e5 {[%clk 00:15:08]} {[%emt 00:00:52]} 36. g5 {[%clk 00:02:55]} {[%emt
00:00:33]} Nd4+ {[%clk 00:14:13]} {[%emt 00:01:05]} 37. Kf1 {[%clk 00:02:53]}
{[%emt 00:00:12]} fxg5 {[%clk 00:11:03]} {[%emt 00:03:19]} 38. Re1 {[%clk
00:02:44]} {[%emt 00:00:19]} Kf6 {[%clk 00:10:12]} {[%emt 00:01:02]} 39. Rxe5
{[%clk 00:02:45]} {[%emt 00:00:09]} Ne6 {[%clk 00:10:20]} {[%emt 00:00:02]} 40.
a4 {[%clk 00:02:32]} {[%emt 00:00:23]} h5 {[%clk 00:09:32]} {[%emt 00:00:58]}
41. a5 {[%clk 00:02:19]} {[%emt 00:00:23]} h4 {[%clk 00:08:50]} {[%emt
00:00:52]} 42. Rd5 {[%clk 00:02:04]} {[%emt 00:00:25]} Ke7 {[%clk 00:07:07]}
{[%emt 00:01:53]} 43. Ne5 {[%clk 00:01:58]} {[%emt 00:00:15]} Nf4 {[%clk
00:04:30]} {[%emt 00:02:48]} 44. Rd2 {[%clk 00:01:20]} {[%emt 00:00:48]} Kf6
{[%clk 00:03:23]} {[%emt 00:01:17]} 45. Nc6 {[%clk 00:01:03]} {[%emt 00:00:27]}
Rh7 {[%clk 00:02:31]} {[%emt 00:01:01]} 46. Rd6+ {[%clk 00:01:06]} {[%emt
00:00:07]} Kf5 {[%clk 00:02:33]} {[%emt 00:00:08]} 47. f3 {[%clk 00:00:46]}
{[%emt 00:00:30]} g4 {[%clk 00:02:13]} {[%emt 00:00:30]} 48. fxg4+ {[%clk
00:00:46]} {[%emt 00:00:11]} Kxg4 {[%clk 00:02:14]} {[%emt 00:00:09]} 49. b6
{[%clk 00:00:41]} {[%emt 00:00:15]} axb6 {[%clk 00:00:48]} {[%emt 00:01:36]} 50.
a6 {[%clk 00:00:50]} h3 {[%clk 00:00:36]} {[%emt 00:00:22]} 51. gxh3+ {[%clk
00:00:39]} {[%emt 00:00:22]} Rxh3 {[%clk 00:00:42]} {[%emt 00:00:04]} 52. Ne5+
{[%clk 00:00:26]} {[%emt 00:00:23]} Kg3 {[%clk 00:00:47]} {[%emt 00:00:04]} 53.
Ke1 {[%clk 00:00:29]} {[%emt 00:00:07]} Rh1+ {[%clk 00:00:30]} {[%emt
00:00:28]} 54. Kd2 {[%clk 00:00:38]} {[%emt 00:00:01]} Ra1 {[%clk 00:00:23]}
{[%emt 00:00:16]} 55. Rxb6 {[%clk 00:00:45]} {[%emt 00:00:03]} Kf2 {[%clk
00:00:16]} {[%emt 00:00:18]} 56. Nxg6 {[%clk 00:00:23]} {[%emt 00:00:32]} Ra2+
{[%clk 00:00:14]} {[%emt 00:00:12]} 57. Kc3 {[%clk 00:00:26]} {[%emt 00:00:07]}
Ne2+ {[%clk 00:00:19]} {[%emt 00:00:05]} 58. Kb3 {[%clk 00:00:34]} {[%emt
00:00:02]} Ra5 {[%clk 00:00:17]} {[%emt 00:00:12]} 59. Ne5 {[%clk 00:00:34]}
{[%emt 00:00:11]} Nd4+ {[%clk 00:00:26]} 60. Kb2 {[%clk 00:00:38]} {[%emt
00:00:05]} Ra4 {[%clk 00:00:25]} {[%emt 00:00:11]} 61. Nd3 {[%clk 00:00:32]}
{[%emt 00:00:17]} Ke3 {[%clk 00:00:16]} {[%emt 00:00:19]} 62. Nxc5 {[%clk
00:00:39]} {[%emt 00:00:03]} Ra5 {[%clk 00:00:25]} 63. Nb3 {[%clk 00:00:43]}
{[%emt 00:00:05]} Nxb3 {[%clk 00:00:32]} {[%emt 00:00:02]} 64. Kxb3 {[%clk
00:00:52]} {[%emt 00:00:02]} Kd4 {[%clk 00:00:35]} {[%emt 00:00:07]} 65. Kb4
{[%clk 00:00:43]} {[%emt 00:00:18]} Ra1 {[%clk 00:00:44]} {[%emt 00:00:03]} 66.
Rd6 {[%clk 00:00:52]} Ke5 {[%clk 00:00:53]} 67. Rd5+ {[%clk 00:00:59]} {[%emt
00:00:03]} Ke6 {[%clk 00:01:02]} 68. Kb5 {[%clk 00:00:49]} {[%emt 00:00:20]}
Ra2 {[%clk 00:01:07]} {[%emt 00:00:05]} 69. Kb6 {[%clk 00:00:54]} {[%emt
00:00:04]} Ra1 {[%clk 00:01:09]} {[%emt 00:00:09]} 70. a7 {[%clk 00:00:44]}
{[%emt 00:00:21]} Ra2 {[%clk 00:01:16]} {[%emt 00:00:02]} 71. Kb7 {[%clk
00:00:46]} {[%emt 00:00:08]} Rb2+ {[%clk 00:01:24]} {[%emt 00:00:02]} 72. Rb5
{[%clk 00:00:55]} {[%emt 00:00:01]} Kd5 {[%emt 00:00:04]} 1-0

[Event "FIDE U16 Olympiad_boards_1-80"]
[Site "Eindhoven, Netherlands"]
[Date "2023.08.14"]
[Round "2.64"]
[White "Mgeladze, Kesaria"]
[Black "Tomcaniova, Lucia"]
[Result "1-0"]
[TimeControl "2700+10"]
[WhiteElo "1660"]
[BlackElo "1668"]

1. e4 {[%clk 00:45:18]} {[%emt 00:00:02]} c5 {[%clk 00:45:14]} {[%emt
00:00:06]} 2. Nf3 {[%clk 00:45:23]} {[%emt 00:00:05]} Nc6 {[%clk 00:45:17]}
{[%emt 00:00:06]} 3. Nc3 {[%clk 00:45:24]} {[%emt 00:00:09]} g6 {[%clk
00:44:55]} {[%emt 00:00:32]} 4. d4 {[%clk 00:45:24]} {[%emt 00:00:10]} cxd4
{[%clk 00:45:00]} {[%emt 00:00:06]} 5. Nxd4 {[%clk 00:45:33]} {[%emt 00:00:01]}
Bg7 {[%clk 00:44:53]} {[%emt 00:00:16]} 6. Be3 {[%clk 00:45:41]} {[%emt
00:00:02]} Nf6 {[%clk 00:44:43]} {[%emt 00:00:20]} 7. Nxc6 {[%clk 00:45:49]}
{[%emt 00:00:02]} bxc6 {[%clk 00:44:42]} {[%emt 00:00:11]} 8. e5 {[%clk
00:45:58]} {[%emt 00:00:01]} Ng8 {[%clk 00:43:38]} {[%emt 00:01:14]} 9. Bd4
{[%clk 00:46:06]} {[%emt 00:00:03]} Nh6 {[%clk 00:35:03]} {[%emt 00:08:45]} 10.
e6 {[%clk 00:46:11]} {[%emt 00:00:05]} O-O {[%clk 00:29:59]} {[%emt 00:05:13]}
11. Bxg7 {[%clk 00:46:18]} {[%emt 00:00:03]} Kxg7 {[%clk 00:30:03]} {[%emt
00:00:07]} 12. Qd4+ {[%clk 00:46:23]} {[%emt 00:00:04]} Kg8 {[%clk 00:28:41]}
{[%emt 00:01:31]} 13. exd7 {[%clk 00:46:28]} {[%emt 00:00:07]} Qxd7 {[%clk
00:27:07]} {[%emt 00:01:43]} 14. Qxd7 {[%clk 00:43:32]} {[%emt 00:03:07]} Bxd7
{[%clk 00:27:15]} {[%emt 00:00:02]} 15. O-O-O {[%clk 00:43:39]} {[%emt
00:00:03]} Be6 {[%clk 00:26:00]} {[%emt 00:01:24]} 16. Ba6 {[%clk 00:41:25]}
{[%emt 00:02:25]} Rab8 {[%clk 00:24:00]} {[%emt 00:02:09]} 17. Rhe1 {[%clk
00:40:47]} {[%emt 00:00:47]} Nf5 {[%clk 00:19:05]} {[%emt 00:05:06]} 18. Na4
{[%clk 00:34:28]} {[%emt 00:06:29]} Rfe8 {[%clk 00:13:32]} {[%emt 00:05:43]} 19.
Nc5 {[%clk 00:29:16]} {[%emt 00:05:22]} Ng7 {[%clk 00:06:05]} {[%emt 00:07:38]}
20. Nxe6 {[%clk 00:23:57]} {[%emt 00:05:28]} Nxe6 {[%clk 00:06:13]} {[%emt
00:00:02]} 21. Rd7 {[%clk 00:23:28]} {[%emt 00:00:40]} Nc5 {[%clk 00:04:31]}
{[%emt 00:01:51]} 22. Rxa7 {[%clk 00:23:35]} {[%emt 00:00:03]} Kf8 {[%clk
00:03:44]} {[%emt 00:00:58]} 23. Bc4 {[%clk 00:23:04]} {[%emt 00:00:40]} Rb7
{[%clk 00:03:30]} {[%emt 00:00:24]} 24. Rxb7 {[%clk 00:21:56]} {[%emt
00:01:18]} Nxb7 {[%clk 00:03:39]} {[%emt 00:00:01]} 25. Re3 {[%clk 00:20:04]}
{[%emt 00:02:03]} Nd6 {[%clk 00:03:29]} {[%emt 00:00:19]} 26. Bb3 {[%clk
00:19:41]} {[%emt 00:00:33]} Rc8 {[%clk 00:02:59]} {[%emt 00:00:41]} 27. Rc3
{[%clk 00:18:25]} {[%emt 00:01:25]} h5 {[%clk 00:02:52]} {[%emt 00:00:17]} 28.
a3 {[%clk 00:16:14]} {[%emt 00:02:21]} e6 {[%clk 00:01:58]} {[%emt 00:01:04]}
29. Bc4 {[%clk 00:12:52]} {[%emt 00:03:32]} Ke7 {[%clk 00:01:26]} {[%emt
00:00:42]} 30. b4 {[%clk 00:12:32]} {[%emt 00:00:30]} Ra8 {[%clk 00:00:41]}
{[%emt 00:00:55]} 31. Be2 {[%clk 00:10:40]} {[%emt 00:02:02]} Kd7 {[%clk
00:00:35]} {[%emt 00:00:17]} 32. Bf3 {[%clk 00:09:33]} {[%emt 00:01:16]} Ra6
{[%clk 00:00:44]} {[%emt 00:00:01]} 33. Kb2 {[%clk 00:08:54]} {[%emt 00:00:50]}
e5 {[%clk 00:00:44]} {[%emt 00:00:09]} 34. Rc5 {[%clk 00:05:45]} {[%emt
00:03:19]} e4 {[%clk 00:00:17]} {[%emt 00:00:37]} 35. Be2 {[%clk 00:05:52]}
{[%emt 00:00:03]} Ra7 {[%clk 00:00:24]} {[%emt 00:00:02]} 36. Kb3 {[%clk
00:05:49]} {[%emt 00:00:14]} f6 {[%clk 00:00:20]} {[%emt 00:00:15]} 37. a4
{[%clk 00:05:24]} {[%emt 00:00:35]} Nf5 {[%clk 00:00:13]} {[%emt 00:00:17]} 38.
Rc4 {[%clk 00:04:47]} {[%emt 00:00:47]} Nd6 {[%clk 00:00:20]} {[%emt 00:00:03]}
39. Rd4 {[%clk 00:04:50]} {[%emt 00:00:06]} Kc7 {[%clk 00:00:22]} {[%emt
00:00:08]} 40. c4 {[%clk 00:04:21]} {[%emt 00:00:39]} f5 {[%clk 00:00:13]}
{[%emt 00:00:19]} 41. c5 {[%clk 00:04:30]} {[%emt 00:00:01]} Nb7 {[%clk
00:00:12]} {[%emt 00:00:12]} 42. Bc4 {[%clk 00:04:20]} {[%emt 00:00:20]} Nd8
{[%clk 00:00:11]} {[%emt 00:00:11]} 43. Rd6 {[%clk 00:03:34]} {[%emt 00:00:56]}
g5 {[%clk 00:00:12]} {[%emt 00:00:09]} 44. Rg6 {[%clk 00:03:38]} {[%emt
00:00:06]} 1-0

[Event "FIDE U16 Olympiad_boards_1-80"]
[Site "Eindhoven, Netherlands"]
[Date "2023.08.14"]
[Round "2.65"]
[White "Mwase, Arthur"]
[Black "Manon, Reja Neer"]
[Result "0-1"]
[TimeControl "2700+10"]
[WhiteElo "1504"]
[BlackElo "2092"]

1. d4 {[%clk 00:45:16]} {[%emt 00:00:04]} Nf6 {[%clk 00:45:15]} {[%emt
00:00:05]} 2. c4 {[%clk 00:45:21]} {[%emt 00:00:05]} e6 {[%clk 00:45:10]}
{[%emt 00:00:16]} 3. g3 {[%clk 00:45:23]} {[%emt 00:00:08]} c5 {[%clk
00:44:34]} {[%emt 00:00:46]} 4. e3 {[%clk 00:45:21]} {[%emt 00:00:11]} cxd4
{[%clk 00:43:49]} {[%emt 00:00:56]} 5. exd4 {[%clk 00:45:25]} {[%emt 00:00:06]}
d5 {[%clk 00:43:57]} 6. cxd5 {[%clk 00:44:30]} {[%emt 00:01:05]} Nxd5 {[%clk
00:42:09]} {[%emt 00:01:58]} 7. Nf3 {[%clk 00:43:38]} {[%emt 00:01:01]} Nc6
{[%clk 00:40:49]} {[%emt 00:01:32]} 8. Bg2 {[%clk 00:42:36]} {[%emt 00:01:11]}
Qa5+ {[%clk 00:38:21]} {[%emt 00:02:39]} 9. Nbd2 {[%clk 00:39:27]} {[%emt
00:03:18]} Qa6 {[%clk 00:31:20]} {[%emt 00:07:12]} 10. Qe2 {[%clk 00:31:04]}
{[%emt 00:08:28]} Qxe2+ {[%clk 00:27:52]} {[%emt 00:03:42]} 11. Kxe2 {[%clk
00:31:10]} {[%emt 00:00:03]} b6 {[%clk 00:28:01]} {[%emt 00:00:02]} 12. a3
{[%clk 00:23:17]} {[%emt 00:07:59]} Ba6+ {[%clk 00:27:45]} {[%emt 00:00:30]} 13.
Kd1 {[%clk 00:23:23]} {[%emt 00:00:04]} Rc8 {[%clk 00:27:13]} {[%emt 00:00:43]}
14. Ne4 {[%clk 00:18:45]} {[%emt 00:04:45]} Na5 {[%clk 00:22:57]} {[%emt
00:04:28]} 15. Nfd2 {[%clk 00:17:17]} {[%emt 00:01:35]} Be7 {[%clk 00:23:02]}
{[%emt 00:00:08]} 16. b4 {[%emt 00:00:50]} Nc4 {[%clk 00:22:50]} 17. Nxc4
{[%clk 00:13:59]} {[%emt 00:03:10]} Bxc4 {[%clk 00:22:51]} {[%emt 00:00:10]} 18.
Bb2 {[%clk 00:11:14]} {[%emt 00:02:54]} Bb3+ {[%clk 00:21:46]} {[%emt
00:01:15]} 19. Ke1 {[%clk 00:10:20]} {[%emt 00:01:03]} Rc2 {[%clk 00:21:23]}
{[%emt 00:00:34]} 20. Bc1 {[%clk 00:10:24]} {[%emt 00:00:06]} O-O {[%clk
00:20:20]} {[%emt 00:01:12]} 21. Nd2 {[%clk 00:09:23]} {[%emt 00:01:11]} Ba4
{[%clk 00:20:29]} {[%emt 00:00:02]} 22. Be4 {[%clk 00:09:24]} {[%emt 00:00:08]}
Rc7 {[%clk 00:20:38]} {[%emt 00:00:02]} 23. Bb2 {[%clk 00:08:22]} {[%emt
00:01:13]} Bf6 {[%clk 00:20:47]} {[%emt 00:00:01]} 24. Ke2 {[%clk 00:07:16]}
{[%emt 00:01:15]} Nc3+ {[%clk 00:11:10]} {[%emt 00:09:47]} 25. Bxc3 {[%clk
00:07:00]} {[%emt 00:00:27]} Rxc3 {[%clk 00:11:19]} 26. Nf3 {[%clk 00:06:37]}
{[%emt 00:00:33]} Rfc8 {[%clk 00:11:25]} {[%emt 00:00:02]} 27. Kd2 {[%clk
00:05:50]} {[%emt 00:00:58]} g5 {[%clk 00:01:36]} {[%emt 00:09:59]} 28. h4
{[%clk 00:01:38]} {[%emt 00:04:22]} Bc6 {[%clk 00:00:20]} {[%emt 00:01:27]} 29.
Bxc6 {[%clk 00:01:26]} {[%emt 00:00:21]} R8xc6 {[%clk 00:00:22]} {[%emt
00:00:08]} 30. Rhc1 {[%clk 00:00:50]} {[%emt 00:00:46]} Rxf3 {[%clk 00:00:30]}
{[%emt 00:00:02]} 31. Rxc6 {[%clk 00:00:57]} {[%emt 00:00:03]} Bxd4 {[%clk
00:00:39]} 32. Rf1 {[%clk 00:00:50]} {[%emt 00:00:16]} g4 {[%clk 00:00:30]}
{[%emt 00:00:20]} 33. Rc4 {[%clk 00:00:20]} {[%emt 00:00:40]} e5 {[%clk
00:00:28]} {[%emt 00:00:12]} 34. h5 {[%clk 00:00:25]} {[%emt 00:00:05]} Kg7
{[%clk 00:00:25]} {[%emt 00:00:13]} 35. Rc6 {[%clk 00:00:28]} {[%emt 00:00:06]}
h6 {[%clk 00:00:23]} {[%emt 00:00:13]} 36. Rc2 {[%clk 00:00:12]} {[%emt
00:00:26]} Rxa3 {[%clk 00:00:27]} {[%emt 00:00:06]} 37. Rc4 {[%clk 00:00:14]}
{[%emt 00:00:08]} Rb3 {[%clk 00:00:26]} {[%emt 00:00:10]} 38. Ke2 {[%clk
00:00:14]} {[%emt 00:00:11]} b5 {[%clk 00:00:31]} {[%emt 00:00:06]} 39. Rc7
{[%clk 00:00:21]} {[%emt 00:00:02]} Rxb4 {[%clk 00:00:37]} {[%emt 00:00:05]} 40.
f3 {[%clk 00:00:22]} {[%emt 00:00:09]} Rb2+ {[%clk 00:00:45]} {[%emt 00:00:01]}
41. Kd3 {[%clk 00:00:21]} {[%emt 00:00:10]} Rb3+ {[%clk 00:00:54]} {[%emt
00:00:02]} 42. Ke4 {[%clk 00:00:30]} {[%emt 00:00:01]} Re3+ {[%clk 00:01:03]}
43. Kd5 {[%clk 00:00:28]} {[%emt 00:00:12]} gxf3 {[%clk 00:01:06]} {[%emt
00:00:07]} 44. Rb7 {[%clk 00:00:25]} {[%emt 00:00:13]} a6 {[%clk 00:01:02]}
{[%emt 00:00:14]} 45. g4 {[%clk 00:00:23]} {[%emt 00:00:11]} Rc3 {[%clk
00:00:50]} {[%emt 00:00:22]} 46. Ke4 {[%clk 00:00:28]} {[%emt 00:00:04]} f2
{[%clk 00:00:59]} {[%emt 00:00:03]} 47. Rd7 {[%clk 00:00:18]} {[%emt 00:00:18]}
Re3+ {[%clk 00:01:07]} {[%emt 00:00:05]} 48. Kf5 {[%clk 00:00:19]} {[%emt
00:00:06]} Rf3+ {[%clk 00:01:03]} {[%emt 00:00:15]} 49. Ke4 {[%clk 00:00:20]}
{[%emt 00:00:09]} Rf4+ {[%clk 00:01:12]} {[%emt 00:00:02]} 50. Kd3 {[%clk
00:00:28]} {[%emt 00:00:01]} Rxg4 {[%clk 00:01:21]} {[%emt 00:00:02]} 51. Rd6
{[%clk 00:00:33]} {[%emt 00:00:05]} a5 {[%clk 00:01:28]} {[%emt 00:00:04]} 52.
Rd5 {[%clk 00:00:40]} {[%emt 00:00:02]} b4 {[%clk 00:01:14]} {[%emt 00:00:24]}
53. Rxa5 {[%clk 00:00:45]} {[%emt 00:00:04]} b3 {[%clk 00:01:23]} {[%emt
00:00:02]} 54. Rb5 {[%clk 00:00:49]} {[%emt 00:00:06]} b2 {[%clk 00:01:31]}
{[%emt 00:00:02]} 55. Rb4 {[%clk 00:00:39]} {[%emt 00:00:19]} Rg3+ {[%clk
00:01:17]} {[%emt 00:00:25]} 56. Ke2 {[%clk 00:00:33]} {[%emt 00:00:15]} Re3+
{[%clk 00:01:19]} {[%emt 00:00:08]} 57. Kd2 {[%clk 00:00:39]} {[%emt 00:00:04]}
Re1 {[%clk 00:01:22]} {[%emt 00:00:08]} 58. Kd3 {[%clk 00:00:10]} {[%emt
00:00:33]} 0-1

[Event "FIDE U16 Olympiad_boards_1-80"]
[Site "Eindhoven, Netherlands"]
[Date "2023.08.14"]
[Round "2.66"]
[White "Md. Sajidul, Haque"]
[Black "Pido, Edwin"]
[Result "1-0"]
[TimeControl "2700+10"]
[WhiteElo "1993"]
[BlackElo "1482"]

1. d4 {[%clk 00:45:15]} {[%emt 00:00:04]} d5 {[%clk 00:45:08]} {[%emt
00:00:13]} 2. Bf4 {[%clk 00:45:20]} {[%emt 00:00:04]} Nf6 {[%clk 00:45:02]}
{[%emt 00:00:16]} 3. e3 {[%clk 00:45:27]} {[%emt 00:00:03]} e6 {[%clk
00:45:09]} {[%emt 00:00:04]} 4. Nf3 {[%clk 00:45:31]} {[%emt 00:00:06]} Bd6
{[%clk 00:44:51]} {[%emt 00:00:28]} 5. Ne5 {[%clk 00:45:27]} {[%emt 00:00:14]}
O-O {[%clk 00:42:19]} {[%emt 00:02:41]} 6. Nd2 {[%clk 00:45:31]} {[%emt
00:00:07]} c5 {[%clk 00:41:57]} {[%emt 00:00:32]} 7. c3 {[%clk 00:45:36]}
{[%emt 00:00:04]} Nc6 {[%clk 00:41:48]} {[%emt 00:00:19]} 8. Bd3 {[%clk
00:44:35]} {[%emt 00:01:11]} Ne7 {[%clk 00:32:57]} {[%emt 00:09:01]} 9. h4
{[%clk 00:41:06]} {[%emt 00:03:39]} Ng6 {[%clk 00:29:02]} {[%emt 00:04:05]} 10.
Bg3 {[%clk 00:41:04]} {[%emt 00:00:12]} Ne7 {[%clk 00:25:32]} {[%emt 00:03:41]}
11. h5 {[%clk 00:38:07]} {[%emt 00:03:06]} Nf5 {[%clk 00:22:27]} {[%emt
00:03:16]} 12. Bf4 {[%clk 00:37:45]} {[%emt 00:00:31]} g6 {[%clk 00:12:44]}
{[%emt 00:09:54]} 13. g4 {[%emt 00:04:43]} Ne7 {[%clk 00:09:37]} {[%emt
00:00:07]} 14. dxc5 {[%clk 00:32:58]} {[%emt 00:03:32]} Bxc5 {[%clk 00:09:23]}
{[%emt 00:00:25]} 15. Bh6 {[%clk 00:32:44]} {[%emt 00:00:23]} Re8 {[%clk
00:08:54]} {[%emt 00:00:40]} 16. Bb5 {[%clk 00:32:38]} {[%emt 00:00:16]} Nd7
{[%clk 00:07:07]} {[%emt 00:01:57]} 17. Bxd7 {[%clk 00:30:20]} {[%emt
00:02:28]} Bxd7 {[%clk 00:07:08]} {[%emt 00:00:09]} 18. Ne4 {[%clk 00:29:58]}
{[%emt 00:00:31]} b6 {[%clk 00:01:22]} {[%emt 00:05:56]} 19. Nf6+ {[%clk
00:29:50]} {[%emt 00:00:18]} 1-0

[Event "FIDE U16 Olympiad_boards_1-80"]
[Site "Eindhoven, Netherlands"]
[Date "2023.08.14"]
[Round "2.67"]
[White "Ajiri, Nygaard"]
[Black "Sakline Mostafa, Sajid"]
[Result "0-1"]
[TimeControl "2700+10"]
[WhiteElo "1591"]
[BlackElo "2087"]

1. e4 {[%clk 00:45:19]} {[%emt 00:00:01]} c5 {[%clk 00:45:19]} 2. Nf3 {[%clk
00:45:27]} {[%emt 00:00:02]} e6 {[%clk 00:45:28]} {[%emt 00:00:01]} 3. c3
{[%clk 00:45:35]} {[%emt 00:00:02]} Nf6 {[%clk 00:45:36]} {[%emt 00:00:01]} 4.
e5 {[%clk 00:45:43]} {[%emt 00:00:02]} Nd5 {[%clk 00:45:45]} {[%emt 00:00:02]}
5. g3 {[%clk 00:45:50]} {[%emt 00:00:02]} d6 {[%clk 00:45:47]} {[%emt
00:00:09]} 6. exd6 {[%clk 00:45:55]} {[%emt 00:00:05]} Bxd6 {[%clk 00:45:55]}
{[%emt 00:00:01]} 7. Bg2 {[%clk 00:46:04]} {[%emt 00:00:01]} O-O {[%clk
00:46:02]} {[%emt 00:00:04]} 8. Na3 {[%clk 00:46:11]} {[%emt 00:00:03]} Nc6
{[%clk 00:45:56]} {[%emt 00:00:16]} 9. O-O {[%clk 00:46:17]} {[%emt 00:00:03]}
a6 {[%clk 00:45:10]} {[%emt 00:00:57]} 10. Nc2 {[%clk 00:46:01]} {[%emt
00:00:26]} b5 {[%clk 00:44:57]} {[%emt 00:00:23]} 11. d4 {[%clk 00:43:58]}
{[%emt 00:02:03]} Bb7 {[%clk 00:43:57]} {[%emt 00:01:19]} 12. Ng5 {[%clk
00:43:23]} {[%emt 00:00:44]} cxd4 {[%clk 00:42:02]} {[%emt 00:02:07]} 13. Nxd4
{[%clk 00:41:05]} {[%emt 00:02:27]} Nxd4 {[%clk 00:39:40]} {[%emt 00:02:32]} 14.
Qxd4 {[%clk 00:40:58]} {[%emt 00:00:16]} Be7 {[%clk 00:39:08]} {[%emt
00:00:43]} 15. Ne4 {[%clk 00:38:30]} {[%emt 00:02:38]} Qc7 {[%clk 00:37:49]}
{[%emt 00:01:30]} 16. Qd1 {[%clk 00:37:27]} {[%emt 00:01:13]} Rad8 {[%clk
00:36:05]} {[%emt 00:01:53]} 17. Qe2 {[%clk 00:37:31]} {[%emt 00:00:05]} e5
{[%clk 00:35:21]} {[%emt 00:00:56]} 18. Bd2 {[%clk 00:31:49]} {[%emt 00:05:52]}
f5 {[%clk 00:31:28]} {[%emt 00:04:03]} 19. Ng5 {[%clk 00:31:29]} {[%emt
00:00:30]} Qd6 {[%clk 00:30:58]} {[%emt 00:00:40]} 20. Rfe1 {[%clk 00:30:59]}
{[%emt 00:00:38]} h6 {[%clk 00:27:06]} {[%emt 00:04:03]} 21. Nf3 {[%clk
00:28:01]} {[%emt 00:03:09]} e4 {[%clk 00:26:48]} {[%emt 00:00:28]} 22. Nd4
{[%clk 00:28:07]} {[%emt 00:00:03]} Qb6 {[%clk 00:25:33]} {[%emt 00:01:25]} 23.
f3 {[%clk 00:26:35]} {[%emt 00:01:42]} Bc5 {[%clk 00:20:56]} {[%emt 00:04:47]}
24. fxe4 {[%clk 00:22:55]} {[%emt 00:03:50]} Bxd4+ {[%clk 00:17:26]} {[%emt
00:03:41]} 25. cxd4 {[%clk 00:15:47]} {[%emt 00:07:18]} Qxd4+ {[%clk 00:16:35]}
{[%emt 00:01:00]} 26. Kh1 {[%clk 00:15:01]} {[%emt 00:00:56]} fxe4 {[%clk
00:16:22]} {[%emt 00:00:24]} 27. Ba5 {[%clk 00:14:29]} {[%emt 00:00:42]} Rde8
{[%clk 00:14:55]} {[%emt 00:01:37]} 28. Red1 {[%clk 00:11:09]} {[%emt
00:03:26]} Qe5 {[%clk 00:10:49]} {[%emt 00:04:19]} 29. Rac1 {[%clk 00:09:07]}
{[%emt 00:02:12]} e3 {[%clk 00:09:48]} {[%emt 00:01:12]} 30. Be1 {[%emt
00:02:14]} Rc8 {[%clk 00:08:54]} 31. Rxc8 {[%clk 00:05:37]} {[%emt 00:02:41]}
Rxc8 {[%clk 00:09:01]} {[%emt 00:00:03]} 32. Kg1 {[%clk 00:05:42]} {[%emt
00:00:04]} Rc7 {[%clk 00:07:11]} {[%emt 00:02:01]} 33. Rd3 {[%clk 00:04:08]}
{[%emt 00:01:44]} Rc1 {[%clk 00:05:56]} {[%emt 00:01:24]} 34. Bxd5+ {[%clk
00:04:00]} {[%emt 00:00:19]} Bxd5 {[%clk 00:06:03]} {[%emt 00:00:03]} 35. Qxe3
{[%clk 00:03:49]} {[%emt 00:00:14]} Rxe1+ {[%clk 00:06:11]} {[%emt 00:00:08]}
0-1